fUST/lending_fUST_20240310
["ID","MTS","AMOUNT","RATE_DAILY","PERIOD"]
[318078471,1710061849917,-548.45609313,0.00022799,2]
[318078472,1710061849926,-822.97,0.00022799,2]
[318078474,1710061849935,-822.97,0.00022799,2]
[318078476,1710061849945,-822.97,0.00022799,2]
[318078478,1710061849954,-822.97,0.00022799,2]
[318078480,1710061849963,-822.97,0.00022799,2]
[318078482,1710061849972,-822.97,0.00022799,2]
[318078484,1710061849982,-822.97,0.00022799,2]
[318078486,1710061849991,-822.97,0.00022799,2]
[318078488,1710061850000,-822.97,0.00022799,2]
[318078490,1710061850009,-822.97,0.00022799,2]
[318078492,1710061850018,-822.97,0.00022799,2]
[318078494,1710061850028,-823.15272119,0.00022799,2]
[318078496,1710061850037,-500.0,0.00022799,2]
[318078498,1710061850047,-500.0,0.00022799,2]
[318078500,1710061850056,-500.0,0.00022799,2]
[318078502,1710061850065,-500.0,0.00022799,2]
[318078504,1710061850075,-500.0,0.00022799,2]
[318078506,1710061850084,-500.0,0.00022799,2]
[318078508,1710061850094,-500.0,0.00022799,2]
[318078510,1710061850103,-500.0,0.00022799,2]
[318078512,1710061850113,-601.2799708,0.00022799,2]
[318078514,1710061850122,-500.0,0.00022799,2]
[318078516,1710061850132,-586.73737806,0.00022799,2]
[318078518,1710061850142,-944.81,0.00022799,2]
[318078520,1710061850151,-944.81,0.00022799,2]
[318078522,1710061850161,-944.81,0.00022799,2]
[318078524,1710061850170,-944.81,0.00022799,2]
[318078526,1710061850180,-944.81,0.00022799,2]
[318078528,1710061850188,-944.81,0.00022799,2]
[318078530,1710061850198,-944.81,0.00022799,2]
[318078532,1710061850207,-944.81,0.00022799,2]
[318078534,1710061850216,-944.81,0.00022799,2]
[318078536,1710061850226,-944.81,0.00022799,2]
[318078538,1710061850236,-944.81,0.00022799,2]
[318078539,1710061850246,-944.88092323,0.00022799,2]
[318078542,1710061850256,-500.0,0.00022799,2]
[318078543,1710061850266,-500.0,0.00022799,2]
[318078546,1710061850275,-411.57832864,0.00022799,2]
[318078548,1710061850285,-520.33,0.00022799,2]
[318078549,1710061850294,-520.33,0.00022799,2]
[318078551,1710061850303,-520.33,0.00022799,2]
[318078554,1710061850313,-520.33,0.00022799,2]
[318078556,1710061850323,-520.33,0.00022799,2]
[318078558,1710061850332,-520.33,0.00022799,2]
[318078559,1710061850341,-520.33,0.00022799,2]
[318078562,1710061850351,-520.33,0.00022799,2]
[318078563,1710061850360,-520.33,0.00022799,2]
[318078566,1710061850370,-520.33,0.00022799,2]
[318078568,1710061850381,-520.33,0.00022799,2]
[318078570,1710061850390,-520.40671492,0.00022799,2]
[318078572,1710061850399,-633.51845867,0.00022799,2]
[318078574,1710061850408,-1832.45,0.00022799,2]
[318078575,1710061850418,-1832.45,0.00022799,2]
[318078577,1710061850427,-1271.6032669,0.00022799,2]
[318087794,1710061960785,205.24219407,0.0002,2]
[318087818,1710062429334,2417.97732285,0.00019872,2]
[318087835,1710062465244,18578.75077084,0.0002,2]
[318087868,1710062793399,420.43264907,0.000189,2]
[318087875,1710062969039,1500.0,0.00016681,2]
[318087876,1710062969602,1500.0,0.00017445,2]
[318087877,1710062970179,1500.0,0.0001821,2]
[318087878,1710062970748,1500.0,0.00018974,2]
[318087879,1710062971309,1500.0,0.00019738,2]
[318087884,1710063002362,5873.01830669,0.00019949,2]
[318087928,1710063034702,-1386.34,0.00020048,2]
[318088045,1710063038842,-88.07177418,0.00020048,2]
[318088047,1710063038852,-2020.56022276,0.00020049,2]
[318088049,1710063038862,-539.19119689,0.0002005,2]
[318088051,1710063038871,-1218.50064839,0.000205,2]
[318088053,1710063038881,-195.891127,0.00020551,2]
[318088055,1710063038891,-3000.0,0.0002077,2]
[318088057,1710063038901,-291.169441,0.00021095,2]
[318088059,1710063038911,-151.0,0.00021107,2]
[318088062,1710063038924,-1500.0,0.00021108,2]
[318088064,1710063038935,-160.806833,0.00021261,2]
[318088067,1710063038948,-1500.0,0.00021751,2]
[318088069,1710063038961,-200.9890174,0.00021978,2]
[318088071,1710063038973,-225.0,0.00022,2]
[318088074,1710063038984,-225.0,0.00022192,2]
[318088076,1710063038996,-1500.0,0.00022394,2]
[318088078,1710063039008,-2274.0635674,0.00022699,2]
[318088080,1710063039020,-2000.0,0.000227,2]
[318088082,1710063039030,-2000.0,0.0002271,2]
[318088084,1710063039043,-567.26924481,0.0002272,2]
[318088087,1710063039056,-1432.73075519,0.0002272,2]
[318088089,1710063039067,-2000.0,0.0002273,2]
[318088091,1710063039078,-238.18024038,0.00022738,2]
[318088093,1710063039091,-263.5,0.00022738,2]
[318088095,1710063039103,-263.5,0.00022738,2]
[318088097,1710063039114,-263.5,0.00022738,2]
[318088100,1710063039125,-263.5,0.00022738,2]
[318088102,1710063039137,-234.7190044,0.00022738,2]
[318088104,1710063039151,-28.7809956,0.00022738,2]
[318088106,1710063039162,-263.5,0.00022738,2]
[318088108,1710063039173,-263.5,0.00022738,2]
[318088110,1710063039184,-138.8890044,0.00022738,2]
[318088112,1710063039197,-124.6109956,0.00022738,2]
[318088114,1710063039207,-263.5,0.00022738,2]
[318088117,1710063039221,-263.5,0.00022738,2]
[318088119,1710063039232,-500.0,0.00022739,2]
[318088121,1710063039244,-500.0,0.00022739,2]
[318088123,1710063039255,-1148.65,0.00022739,2]
[318088125,1710063039266,-1148.65,0.00022739,2]
[318088127,1710063039276,-502.9709429,0.00022739,2]
[318088129,1710063039286,-518.38433706,0.00022739,2]
[318088131,1710063039298,-501.94843205,0.00022739,2]
[318088134,1710063039309,-1645.51,0.00022739,2]
[318088135,1710063039320,-1645.51,0.00022739,2]
[318088137,1710063039332,-759.08404378,0.00022739,2]
[318088140,1710063039346,-474.35212794,0.00022739,2]
[318088186,1710063040665,-412.07382828,0.00022739,2]
[318088187,1710063040677,-1645.51,0.00022739,2]
[318088188,1710063040687,-1645.51,0.00022739,2]
[318088189,1710063040698,-1645.51,0.00022739,2]
[318088190,1710063040708,-500.0,0.00022739,2]
[318088191,1710063040722,-500.0,0.00022739,2]
[318088192,1710063040734,-466.96464,0.00022739,2]
[318088193,1710063040746,-500.0,0.00022739,2]
[318088194,1710063040757,-500.0,0.00022739,2]
[318088195,1710063040767,-500.0,0.00022739,2]
[318088196,1710063040778,-500.0,0.00022739,2]
[318088197,1710063040790,-500.0,0.00022739,2]
[318088198,1710063040801,-500.0,0.00022739,2]
[318088199,1710063040811,-500.0,0.00022739,2]
[318088201,1710063040822,-500.0,0.00022739,2]
[318088202,1710063040833,-336.055,0.00022739,2]
[318088204,1710063040843,-500.0,0.00022739,2]
[318088205,1710063040853,-500.0,0.00022739,2]
[318088207,1710063040863,-576.94545003,0.00022739,2]
[318088208,1710063040873,-500.0,0.00022739,2]
[318088209,1710063040884,-411.37919769,0.00022739,2]
[318088210,1710063040895,-500.0,0.00022739,2]
[318088211,1710063040906,-188.96654124,0.00022739,2]
[318088212,1710063040917,-500.0,0.00022739,2]
[318088213,1710063040930,-500.0,0.00022739,2]
[318088214,1710063040942,-500.0,0.00022739,2]
[318088215,1710063040953,-500.0,0.00022739,2]
[318088216,1710063040966,-500.0,0.00022739,2]
[318088217,1710063040979,-500.0,0.00022739,2]
[318088218,1710063040992,-500.0,0.00022739,2]
[318088219,1710063041005,-500.0,0.00022739,2]
[318088220,1710063041020,-165.37,0.00022739,2]
[318088221,1710063041034,-299.10440145,0.00022739,2]
[318088222,1710063041047,-747.86,0.00022739,2]
[318088223,1710063041058,-708.75094131,0.00022739,2]
[318088224,1710063041251,-39.10905869,0.00022739,2]
[318088225,1710063041261,-747.86,0.00022739,2]
[318088226,1710063041273,-747.86,0.00022739,2]
[318088227,1710063041283,-500.0,0.00022739,2]
[318088228,1710063041410,-129.65522955,0.00022739,2]
[318088272,1710063043819,-370.34477045,0.00022739,2]
[318088274,1710063043830,-500.0,0.00022739,2]
[318088276,1710063043841,-249.53928965,0.00022739,2]
[318088325,1710063046852,-250.46071035,0.00022739,2]
[318088326,1710063046862,-548.57,0.00022739,2]
[318088327,1710063046872,-548.57,0.00022739,2]
[318088328,1710063046881,-548.57,0.00022739,2]
[318088329,1710063046890,-548.57,0.00022739,2]
[318088330,1710063046900,-500.0,0.00022739,2]
[318088331,1710063046909,-500.0,0.00022739,2]
[318088332,1710063046919,-500.0,0.00022739,2]
[318088333,1710063046929,-500.0,0.00022739,2]
[318088334,1710063046938,-873.14,0.00022739,2]
[318088335,1710063046948,-873.14,0.00022739,2]
[318088336,1710063046957,-873.14,0.00022739,2]
[318088337,1710063046968,-873.14,0.00022739,2]
[318088338,1710063046978,-500.0,0.00022739,2]
[318088340,1710063046987,-500.0,0.00022739,2]
[318088342,1710063046997,-500.0,0.00022739,2]
[318088343,1710063047006,-500.0,0.00022739,2]
[318088345,1710063047015,-402.19173228,0.00022739,2]
[318088347,1710063047027,-817.38,0.00022739,2]
[318088349,1710063047036,-817.38,0.00022739,2]
[318088351,1710063047046,-817.38,0.00022739,2]
[318088353,1710063047056,-817.38,0.00022739,2]
[318088354,1710063047066,-710.53,0.00022739,2]
[318088355,1710063047076,-710.53,0.00022739,2]
[318088356,1710063047085,-500.0,0.00022739,2]
[318088358,1710063047095,-500.0,0.00022739,2]
[318088360,1710063047104,-500.0,0.00022739,2]
[318088362,1710063047114,-500.0,0.00022739,2]
[318088364,1710063047124,-500.0,0.00022739,2]
[318088366,1710063047133,-500.0,0.00022739,2]
[318088368,1710063047143,-500.0,0.00022739,2]
[318088370,1710063047152,-500.0,0.00022739,2]
[318088372,1710063047161,-500.0,0.00022739,2]
[318088373,1710063047170,-500.0,0.00022739,2]
[318088375,1710063047181,-500.0,0.00022739,2]
[318088377,1710063047190,-500.0,0.00022739,2]
[318088379,1710063047199,-500.0,0.00022739,2]
[318088381,1710063047209,-500.0,0.00022739,2]
[318088383,1710063047219,-500.0,0.00022739,2]
[318088385,1710063047229,-500.0,0.00022739,2]
[318088387,1710063047238,-500.0,0.00022739,2]
[318088389,1710063047247,-500.0,0.00022739,2]
[318088391,1710063047257,-5221.14,0.00022739,2]
[318088392,1710063047266,-5221.14,0.00022739,2]
[318088394,1710063047275,-500.0,0.00022739,2]
[318088396,1710063047286,-5221.14,0.00022739,2]
[318088398,1710063047295,-238.07889229,0.00022739,2]
[318088422,1710063047642,-261.92110771,0.00022739,2]
[318088423,1710063047651,-5221.14,0.00022739,2]
[318088424,1710063047660,-500.0,0.00022739,2]
[318088425,1710063047669,-500.0,0.00022739,2]
[318088426,1710063047679,-500.0,0.00022739,2]
[318088427,1710063047689,-500.0,0.00022739,2]
[318088428,1710063047698,-500.0,0.00022739,2]
[318088429,1710063047708,-272.54355166,0.00022739,2]
[318088430,1710063047717,-189.30893357,0.00022739,2]
[318088431,1710063047728,-500.0,0.00022739,2]
[318088432,1710063047737,-500.0,0.00022739,2]
[318088433,1710063047747,-500.0,0.00022739,2]
[318088434,1710063047756,-500.0,0.00022739,2]
[318088435,1710063047765,-500.0,0.00022739,2]
[318088436,1710063047775,-500.0,0.00022739,2]
[318088437,1710063047785,-500.0,0.00022739,2]
[318088438,1710063047794,-500.0,0.00022739,2]
[318088439,1710063047803,-500.0,0.00022739,2]
[318088440,1710063047812,-500.0,0.00022739,2]
[318088441,1710063047821,-318.39003861,0.00022739,2]
[318088442,1710063047831,-476.28951605,0.00022739,2]
[318088443,1710063047841,-597.15985528,0.00022739,2]
[318088444,1710063047850,-338.83323476,0.00022739,2]
[318088445,1710063047859,-500.0,0.00022739,2]
[318088446,1710063047868,-500.0,0.00022739,2]
[318088447,1710063047878,-500.0,0.00022739,2]
[318088448,1710063047888,-500.0,0.00022739,2]
[318088449,1710063047898,-500.0,0.00022739,2]
[318088450,1710063047908,-314.26581655,0.00022739,2]
[318088451,1710063047918,-560.04,0.00022739,2]
[318088452,1710063047928,-560.04,0.00022739,2]
[318088453,1710063047938,-500.0,0.00022739,2]
[318088454,1710063047947,-560.04,0.00022739,2]
[318088455,1710063047956,-500.0,0.00022739,2]
[318088456,1710063047965,-1234.14,0.00022739,2]
[318088457,1710063047976,-1234.14,0.00022739,2]
[318088458,1710063047986,-2000.0,0.0002274,2]
[318088459,1710063047995,-747.86,0.00022743,2]
[318088460,1710063048006,-548.57,0.00022743,2]
[318088461,1710063048016,-500.0,0.00022743,2]
[318088462,1710063048029,-873.14,0.00022743,2]
[318088463,1710063048038,-500.0,0.00022743,2]
[318088464,1710063048049,-47.66078126,0.00022743,2]
[318089396,1710064240032,-2020.56022276,0.00020327,2]
[318089399,1710064240043,-280.54842491,0.00020327,2]
[318089402,1710064240053,-1498.8773728,0.00020328,2]
[318089405,1710064240064,-421.46914087,0.00020639,2]
[318089408,1710064240075,-291.169441,0.00020813,2]
[318089411,1710064240086,-47656.7894357,0.00021502,2]
[318089414,1710064240097,-3941.83631875,0.00021502,2]
[318089417,1710064240106,-1500.0,0.00021503,2]
[318089420,1710064240116,-5000.0,0.00022,2]
[318089422,1710064240127,-217.0,0.00022,2]
[318089424,1710064240138,-217.0,0.00022192,2]
[318089426,1710064240148,-1512.875899,0.00022541,2]
[318089429,1710064240161,-2000.0,0.000227,2]
[318089430,1710064240172,-2000.0,0.0002271,2]
[318089432,1710064240183,-2000.0,0.0002272,2]
[318089434,1710064240194,-2000.0,0.0002273,2]
[318089436,1710064240204,-500.0,0.00022739,2]
[318089439,1710064240219,-500.0,0.00022739,2]
[318089440,1710064240229,-500.0,0.00022739,2]
[318089442,1710064240239,-502.57348624,0.00022739,2]
[318089444,1710064240248,-500.63410129,0.00022739,2]
[318089446,1710064240258,-151.0,0.00022739,2]
[318089449,1710064240267,-229.62046203,0.00022739,2]
[318089450,1710064240277,-500.0,0.00022739,2]
[318089452,1710064240286,-501.01718393,0.00022739,2]
[318089454,1710064240296,-622.82408255,0.00022739,2]
[318089456,1710064240305,-502.60030609,0.00022739,2]
[318089458,1710064240314,-500.0,0.00022739,2]
[318089460,1710064240323,-500.0,0.00022739,2]
[318089462,1710064240338,-500.0,0.00022739,2]
[318089465,1710064240348,-500.0,0.00022739,2]
[318089466,1710064240357,-500.0,0.00022739,2]
[318089469,1710064240367,-519.57472686,0.00022739,2]
[318089470,1710064240378,-500.0,0.00022739,2]
[318089473,1710064240387,-500.0,0.00022739,2]
[318089474,1710064240396,-165.63552167,0.00022739,2]
[318089476,1710064240406,-500.0,0.00022739,2]
[318089478,1710064240415,-500.0,0.00022739,2]
[318089480,1710064240424,-160.47673856,0.00022739,2]
[318089482,1710064240434,-500.0,0.00022739,2]
[318089485,1710064240443,-651.32,0.00022739,2]
[318089487,1710064240452,-651.32,0.00022739,2]
[318089488,1710064240464,-651.32,0.00022739,2]
[318089490,1710064240473,-500.0,0.00022739,2]
[318089493,1710064240483,-500.0,0.00022739,2]
[318089495,1710064240491,-500.0,0.00022739,2]
[318089497,1710064240500,-500.0,0.00022739,2]
[318089499,1710064240509,-500.0,0.00022739,2]
[318089501,1710064240518,-500.0,0.00022739,2]
[318089503,1710064240527,-500.0,0.00022739,2]
[318089505,1710064240536,-500.0,0.00022739,2]
[318089506,1710064240545,-500.0,0.00022739,2]
[318089508,1710064240555,-500.0,0.00022739,2]
[318089511,1710064240564,-500.0,0.00022739,2]
[318089513,1710064240573,-500.0,0.00022739,2]
[318089514,1710064240582,-500.0,0.00022739,2]
[318089516,1710064240592,-437.54965676,0.00022739,2]
[318089518,1710064240601,-500.0,0.00022739,2]
[318089520,1710064240610,-500.0,0.00022739,2]
[318089522,1710064240619,-500.0,0.00022739,2]
[318089524,1710064240628,-500.0,0.00022739,2]
[318089526,1710064240637,-500.0,0.00022739,2]
[318089528,1710064240647,-500.0,0.00022739,2]
[318089530,1710064240656,-500.0,0.00022739,2]
[318089532,1710064240666,-500.0,0.00022739,2]
[318089534,1710064240676,-500.0,0.00022739,2]
[318089536,1710064240687,-500.0,0.00022739,2]
[318089538,1710064240696,-500.0,0.00022739,2]
[318089540,1710064240707,-500.0,0.00022739,2]
[318089542,1710064240717,-500.0,0.00022739,2]
[318089544,1710064240727,-500.0,0.00022739,2]
[318089546,1710064240739,-472.31758099,0.00022739,2]
[318089547,1710064240749,-500.0,0.00022739,2]
[318089549,1710064240758,-500.0,0.00022739,2]
[318089552,1710064240768,-500.0,0.00022739,2]
[318089554,1710064240779,-500.0,0.00022739,2]
[318089555,1710064240788,-500.0,0.00022739,2]
[318089558,1710064240799,-500.0,0.00022739,2]
[318089559,1710064240808,-500.0,0.00022739,2]
[318089561,1710064240817,-500.0,0.00022739,2]
[318089563,1710064240827,-500.0,0.00022739,2]
[318089565,1710064240836,-500.0,0.00022739,2]
[318089568,1710064240849,-500.0,0.00022739,2]
[318089570,1710064240858,-440.07769635,0.00022739,2]
[318089572,1710064240867,-500.0,0.00022739,2]
[318089574,1710064240876,-500.0,0.00022739,2]
[318089576,1710064240885,-500.0,0.00022739,2]
[318089578,1710064240894,-500.0,0.00022739,2]
[318089580,1710064240903,-500.0,0.00022739,2]
[318089581,1710064240913,-500.0,0.00022739,2]
[318089583,1710064240922,-500.0,0.00022739,2]
[318089585,1710064240932,-500.0,0.00022739,2]
[318089587,1710064240940,-500.0,0.00022739,2]
[318089589,1710064240950,-500.0,0.00022739,2]
[318089591,1710064240961,-1562.8,0.00022739,2]
[318089594,1710064240971,-1562.8,0.00022739,2]
[318089595,1710064240980,-1562.8,0.00022739,2]
[318089598,1710064240990,-431.9342854,0.00022739,2]
[318089600,1710064241000,-1131.29,0.00022739,2]
[318089601,1710064241011,-1131.29,0.00022739,2]
[318089604,1710064241020,-1131.29,0.00022739,2]
[318089605,1710064241030,-314.90797222,0.00022739,2]
[318089607,1710064241039,-500.0,0.00022739,2]
[318089610,1710064241049,-244.56375811,0.00022739,2]
[318089612,1710064241058,-500.0,0.00022739,2]
[318089613,1710064241068,-500.0,0.00022739,2]
[318089616,1710064241077,-500.0,0.00022739,2]
[318089618,1710064241086,-500.0,0.00022739,2]
[318089619,1710064241095,-500.0,0.00022739,2]
[318089621,1710064241104,-500.0,0.00022739,2]
[318089623,1710064241113,-500.0,0.00022739,2]
[318089625,1710064241122,-500.0,0.00022739,2]
[318089628,1710064241132,-500.0,0.00022739,2]
[318089630,1710064241141,-179.56616717,0.00022739,2]
[318089631,1710064241151,-500.0,0.00022739,2]
[318089634,1710064241160,-500.0,0.00022739,2]
[318089635,1710064241170,-500.0,0.00022739,2]
[318089637,1710064241179,-500.0,0.00022739,2]
[318089639,1710064241189,-500.0,0.00022739,2]
[318089641,1710064241198,-500.0,0.00022739,2]
[318089643,1710064241209,-500.0,0.00022739,2]
[318089645,1710064241218,-221.96160107,0.00022739,2]
[318089647,1710064241227,-658.74,0.00022739,2]
[318089649,1710064241237,-658.74,0.00022739,2]
[318089651,1710064241247,-658.74,0.00022739,2]
[318089653,1710064241258,-691.24,0.00022739,2]
[318089655,1710064241270,-691.24,0.00022739,2]
[318089657,1710064241281,-691.24,0.00022739,2]
[318089659,1710064241291,-1872.61,0.00022739,2]
[318089661,1710064241302,-1872.61,0.00022739,2]
[318089663,1710064241312,-1872.61,0.00022739,2]
[318089665,1710064241321,-2100.22,0.00022739,2]
[318089667,1710064241336,-2100.22,0.00022739,2]
[318089669,1710064241346,-2100.22,0.00022739,2]
[318089670,1710064241357,-2100.22,0.00022739,2]
[318089672,1710064241366,-1052.93,0.00022739,2]
[318089674,1710064241377,-1052.93,0.00022739,2]
[318089684,1710064241467,-1052.93,0.00022739,2]
[318089686,1710064241478,-1052.93,0.00022739,2]
[318089688,1710064241487,-506.16251161,0.00022739,2]
[318089690,1710064241496,-3303.51,0.00022739,2]
[318089692,1710064241506,-3303.51,0.00022739,2]
[318089694,1710064241515,-3303.51,0.00022739,2]
[318089696,1710064241524,-500.0,0.00022739,2]
[318089698,1710064241536,-500.0,0.00022739,2]
[318089700,1710064241544,-500.0,0.00022739,2]
[318089702,1710064241554,-500.0,0.00022739,2]
[318089704,1710064241563,-500.0,0.00022739,2]
[318089706,1710064241573,-500.0,0.00022739,2]
[318089708,1710064241582,-500.0,0.00022739,2]
[318089710,1710064241591,-500.0,0.00022739,2]
[318089712,1710064241602,-500.0,0.00022739,2]
[318089714,1710064241612,-1680.31,0.00022739,2]
[318089716,1710064241622,-500.0,0.00022739,2]
[318089718,1710064241630,-1549.04601775,0.00022739,2]
[318089722,1710064241657,-131.26398225,0.00022739,2]
[318089723,1710064241667,-500.0,0.00022739,2]
[318089725,1710064241676,-1680.31,0.00022739,2]
[318089727,1710064241686,-500.0,0.00022739,2]
[318089729,1710064241696,-500.0,0.00022739,2]
[318089731,1710064241705,-500.0,0.00022739,2]
[318089733,1710064241716,-500.0,0.00022739,2]
[318089735,1710064241725,-500.0,0.00022739,2]
[318089737,1710064241735,-500.0,0.00022739,2]
[318089739,1710064241745,-500.0,0.00022739,2]
[318089741,1710064241755,-500.0,0.00022739,2]
[318089743,1710064241764,-500.0,0.00022739,2]
[318089745,1710064241774,-500.0,0.00022739,2]
[318089747,1710064241783,-500.0,0.00022739,2]
[318089749,1710064241793,-4350.95,0.00022739,2]
[318089751,1710064241803,-4350.95,0.00022739,2]
[318089753,1710064241812,-4350.95,0.00022739,2]
[318089755,1710064241821,-500.0,0.00022739,2]
[318089757,1710064241831,-500.0,0.00022739,2]
[318089759,1710064241840,-500.0,0.00022739,2]
[318089761,1710064241850,-500.0,0.00022739,2]
[318089763,1710064241859,-500.0,0.00022739,2]
[318089765,1710064241869,-2000.0,0.0002274,2]
[318089767,1710064241879,-500.0,0.00022742,2]
[318089769,1710064241888,-1562.8,0.00022742,2]
[318089771,1710064241897,-500.0,0.00022742,2]
[318089773,1710064241907,-500.0,0.00022742,2]
[318089775,1710064241917,-500.0,0.00022742,2]
[318089777,1710064241926,-658.74,0.00022742,2]
[318089779,1710064241936,-691.24,0.00022742,2]
[318089781,1710064241946,-1872.61,0.00022742,2]
[318089783,1710064241955,-3303.51,0.00022742,2]
[318089785,1710064241967,-500.0,0.00022742,2]
[318089787,1710064241977,-500.0,0.00022742,2]
[318089789,1710064241986,-311.72289608,0.00022742,2]
[318089791,1710064241995,-1680.31,0.00022742,2]
[318089793,1710064242004,-500.0,0.00022742,2]
[318089795,1710064242013,-163.5293896,0.00022742,2]
[318089796,1710064242022,-4350.95,0.00022742,2]
[318089798,1710064242031,-990.05665748,0.00022743,2]
[318089800,1710064242041,-620.900445,0.00022743,2]
[318089802,1710064242050,-651.32,0.00022743,2]
[318089804,1710064242059,-500.0,0.00022743,2]
[318089806,1710064242069,-500.0,0.00022743,2]
[318089808,1710064242078,-500.0,0.00022743,2]
[318089810,1710064242087,-500.0,0.00022743,2]
[318089812,1710064242096,-500.0,0.00022743,2]
[318089814,1710064242106,-500.0,0.00022743,2]
[318089816,1710064242115,-500.0,0.00022743,2]
[318089818,1710064242125,-500.0,0.00022743,2]
[318089820,1710064242134,-500.0,0.00022743,2]
[318089822,1710064242144,-500.0,0.00022743,2]
[318089824,1710064242154,-500.0,0.00022743,2]
[318089826,1710064242163,-500.0,0.00022743,2]
[318089828,1710064242173,-1131.29,0.00022743,2]
[318089830,1710064242182,-2000.0,0.0002275,2]
[318089832,1710064242192,-500.0,0.00022759,2]
[318089834,1710064242201,-2000.0,0.0002276,2]
[318089836,1710064242212,-500.0,0.00022769,2]
[318089838,1710064242222,-500.0,0.00022769,2]
[318089840,1710064242231,-2100.22,0.00022769,2]
[318089843,1710064242240,-826.08535569,0.00022769,2]
[318089846,1710064242253,-226.84464431,0.00022769,2]
[318089849,1710064242263,-500.0,0.00022769,2]
[318089852,1710064242272,-500.0,0.00022769,2]
[318089855,1710064242282,-2000.0,0.0002277,2]
[318089858,1710064242291,-714.45535569,0.0002278,2]
[318094886,1710064472021,243.0,0.00012,30]
[318094921,1710065203698,454.51354742,0.000189,2]
[318094925,1710065294433,108898.2833407,0.00019965,2]
[318094986,1710065432134,-280.54842491,0.00020587,2]
[318094988,1710065432144,-1474.41177418,0.00020587,2]
[318094990,1710065432154,-331.25647707,0.00020588,2]
[318094992,1710065432166,-2020.56022276,0.00020589,2]
[318094994,1710065432176,-310.20475301,0.00020631,2]
[318094996,1710065432186,-28974.57067066,0.00020999,2]
[318094998,1710065432199,-699.68304161,0.00020999,2]
[318095001,1710065432210,-1386.34,0.00020999,2]
[318095004,1710065432222,-445.99943925,0.00020999,2]
[318095089,1710065438064,-188.47150508,0.00020586,2]
[318095090,1710065438074,-3196.70228092,0.00020999,2]
[318095091,1710065438086,-777.50494979,0.00020999,2]
[318095092,1710065438099,-12175.98905347,0.00020999,2]
[318095093,1710065438108,-4875.14785835,0.00021,2]
[318095094,1710065438117,-336.58682193,0.00021848,2]
[318095095,1710065438127,-5000.0,0.00022,2]
[318095096,1710065438137,-164.0,0.00022,2]
[318095097,1710065438146,-319.065386,0.00022085,2]
[318095098,1710065438156,-474.947198,0.00022085,2]
[318095099,1710065438165,-319.065386,0.00022361,2]
[318095100,1710065438176,-474.947198,0.00022361,2]
[318095101,1710065438186,-319.065386,0.00022637,2]
[318095102,1710065438195,-474.947198,0.00022637,2]
[318095103,1710065438205,-2000.0,0.000227,2]
[318095104,1710065438216,-2000.0,0.0002271,2]
[318095105,1710065438226,-3474.405945,0.0002272,2]
[318095107,1710065438235,-1346.69214823,0.00022728,2]
[318095109,1710065438245,-1000.0,0.00022728,7]
[318095111,1710065438254,-1000.0,0.00022728,7]
[318095113,1710065438263,-1000.0,0.00022728,7]
[318095115,1710065438272,-1000.0,0.00022728,7]